[Event "Titled Tuesday Blitz July 4 Early 2023"]
[White "lagarto93"]
[Black "Melikhov, Evgeny V."]
[BlackFideId "4122046"]
[WhiteElo "2538"]
[BlackElo "2387"]
[Result "1-0"]
[Round "5"]
[TimeControl "180+2"]
[Date "2023.07.04"]
[WhiteClock "0:01:03"]
[BlackClock "0:00:00"]
[Board "148"]

1. e4 {[%clk 0:03:00]}  e5 {[%clk 0:02:59]} 2. Nf3 {[%clk 0:03:01]}  Nc6 {[%clk 0:02:59]} 3. Bc4 {[%clk 0:03:01]}  Nf6 {[%clk 0:02:59]} 4. d3 {[%clk 0:03:01]}  Be7 {[%clk 0:02:58]} 5. Bb3 {[%clk 0:03:02]}  d6 {[%clk 0:02:56]} 6. c3 {[%clk 0:03:01]}  O-O {[%clk 0:02:55]} 7. O-O {[%clk 0:03:00]}  Na5 {[%clk 0:02:55]} 8. Bc2 {[%clk 0:03:00]}  c5 {[%clk 0:02:54]} 9. Re1 {[%clk 0:03:00]}  b5 {[%clk 0:02:52]} 10. Nbd2 {[%clk 0:03:00]}  a6 {[%clk 0:02:51]} 11. Nf1 {[%clk 0:03:01]}  Bb7 {[%clk 0:02:52]} 12. Ng3 {[%clk 0:03:01]}  Re8 {[%clk 0:02:51]} 13. Qe2 {[%clk 0:02:57]}  Bf8 {[%clk 0:02:50]} 14. h3 {[%clk 0:02:54]}  d5 {[%clk 0:02:49]} 15. Bg5 {[%clk 0:02:54]}  h6 {[%clk 0:02:48]} 16. Bxf6 {[%clk 0:02:48]}  Qxf6 {[%clk 0:02:48]} 17. Nh2 {[%clk 0:02:48]}  c4 {[%clk 0:02:28]} 18. Ng4 {[%clk 0:02:47]}  Qf4 {[%clk 0:02:15]} 19. exd5 {[%clk 0:02:44]}  cxd3 {[%clk 0:02:11]} 20. Qxd3 {[%clk 0:02:43]}  g6 {[%clk 0:02:04]} 21. Re4 {[%clk 0:02:37]}  Qg5 {[%clk 0:01:59]} 22. h4 {[%clk 0:02:33]}  Qd8 {[%clk 0:01:45]} 23. Rxe5 {[%clk 0:02:19]}  Rxe5 {[%clk 0:01:42]} 24. Nxe5 {[%clk 0:02:20]}  Qxd5 {[%clk 0:01:42]} 25. Qxd5 {[%clk 0:02:16]}  Bxd5 {[%clk 0:01:42]} 26. h5 {[%clk 0:02:16]}  Bg7 {[%clk 0:01:33]} 27. Nd3 {[%clk 0:02:10]}  gxh5 {[%clk 0:01:07]} 28. Nf4 {[%clk 0:02:05]}  Bb7 {[%clk 0:01:00]} 29. Nfxh5 {[%clk 0:02:05]}  Nc4 {[%clk 0:00:52]} 30. Nf5 {[%clk 0:02:04]}  Bh8 {[%clk 0:00:42]} 31. Nxh6+ {[%clk 0:01:53]}  Kf8 {[%clk 0:00:42]} 32. Rb1 {[%clk 0:01:48]}  Rd8 {[%clk 0:00:41]} 33. Bb3 {[%clk 0:01:47]}  Rd2 {[%clk 0:00:38]} 34. Bxc4 {[%clk 0:01:44]}  bxc4 {[%clk 0:00:38]} 35. Ng4 {[%clk 0:01:44]}  Be4 {[%clk 0:00:28]} 36. Re1 {[%clk 0:01:44]}  Bf5 {[%clk 0:00:10]} 37. Ne3 {[%clk 0:01:41]}  Be6 {[%clk 0:00:10]} 38. Nf4 {[%clk 0:01:42]}  Rxb2 {[%clk 0:00:09]} 39. Nxe6+ {[%clk 0:01:42]}  fxe6 {[%clk 0:00:09]} 40. Nxc4 {[%clk 0:01:43]}  Rxa2 {[%clk 0:00:07]} 41. Rxe6 {[%clk 0:01:43]}  Bxc3 {[%clk 0:00:07]} 42. g4 {[%clk 0:01:43]}  a5 {[%clk 0:00:06]} 43. Ra6 {[%clk 0:01:35]}  Bd4 {[%clk 0:00:04]} 44. Rxa5 {[%clk 0:01:32]}  Rxf2 {[%clk 0:00:03]} 45. Kh1 {[%clk 0:01:30]}  Rf4 {[%clk 0:00:03]} 46. g5 {[%clk 0:01:27]}  Kg7 {[%clk 0:00:03]} 47. Nd6 {[%clk 0:01:11]}  Kg6 {[%clk 0:00:03]} 48. Rd5 {[%clk 0:01:11]}  Bc3 {[%clk 0:00:02]} 49. Kg2 {[%clk 0:01:10]}  Rg4+ {[%clk 0:00:02]} 50. Kf3 {[%clk 0:01:10]}  Rxg5 {[%clk 0:00:03]} 51. Rd3 {[%clk 0:01:09]}  Bf6 {[%clk 0:00:02]} 52. Ne4 {[%clk 0:01:09]}  Rf5+ {[%clk 0:00:02]} 53. Kg4 {[%clk 0:01:09]}  Ra5 {[%clk 0:00:02]} 54. Rd6 {[%clk 0:01:09]}  Rf5 {[%clk 0:00:01]} 55. Ra6 {[%clk 0:01:05]}  Rf1 {[%clk 0:00:00]} 56. Ng3 {[%clk 0:01:03]} 1-0


[Site "https://www.chess.com"]

[Event "Titled Tuesday Blitz July 4 Early 2023"]
[White "Fonseca Manrique, Enrique"]
[Black "Goldin, Roman"]
[WhiteFideId "5114330"]
[BlackFideId "2803860"]
[WhiteElo "2534"]
[BlackElo "2383"]
[Result "1-0"]
[Round "5"]
[TimeControl "180+2"]
[Date "2023.07.04"]
[WhiteClock "0:00:59"]
[BlackClock "0:00:00"]
[Board "149"]

1. e4 {[%clk 0:02:57]}  e5 {[%clk 0:03:00]} 2. Nf3 {[%clk 0:02:57]}  Nc6 {[%clk 0:02:59]} 3. Bb5 {[%clk 0:02:57]}  a6 {[%clk 0:03:00]} 4. Ba4 {[%clk 0:02:58]}  Nf6 {[%clk 0:03:00]} 5. O-O {[%clk 0:02:58]}  Be7 {[%clk 0:02:59]} 6. d3 {[%clk 0:02:58]}  d6 {[%clk 0:02:58]} 7. c3 {[%clk 0:02:57]}  Nd7 {[%clk 0:02:58]} 8. Nbd2 {[%clk 0:02:55]}  Nc5 {[%clk 0:02:58]} 9. Bc2 {[%clk 0:02:55]}  Bg4 {[%clk 0:02:57]} 10. h3 {[%clk 0:02:48]}  Bxf3 {[%clk 0:02:43]} 11. Nxf3 {[%clk 0:02:45]}  Ne6 {[%clk 0:02:43]} 12. Re1 {[%clk 0:02:40]}  Ng5 {[%clk 0:02:40]} 13. Nh2 {[%clk 0:02:34]}  Ne6 {[%clk 0:02:33]} 14. Be3 {[%clk 0:02:31]}  Bg5 {[%clk 0:02:32]} 15. d4 {[%clk 0:02:09]}  Bxe3 {[%clk 0:02:30]} 16. fxe3 {[%clk 0:02:09]}  Ne7 {[%clk 0:02:07]} 17. Qh5 {[%clk 0:01:57]}  O-O {[%clk 0:01:53]} 18. Rf1 {[%clk 0:01:51]}  Ng6 {[%clk 0:01:49]} 19. Nf3 {[%clk 0:01:47]}  Qe7 {[%clk 0:01:03]} 20. Bb3 {[%clk 0:01:45]}  Rfe8 {[%clk 0:00:29]} 21. Bxe6 {[%clk 0:01:25]}  fxe6 {[%clk 0:00:23]} 22. Ng5 {[%clk 0:01:25]}  h6 {[%clk 0:00:20]} 23. Nf7 {[%clk 0:01:14]}  Nh8 {[%clk 0:00:16]} 24. Nxh8 {[%clk 0:01:09]}  Kxh8 {[%clk 0:00:16]} 25. Rf7 {[%clk 0:01:10]}  Qd8 {[%clk 0:00:08]} 26. Raf1 {[%clk 0:01:07]}  Rg8 {[%clk 0:00:08]} 27. R1f6 {[%clk 0:01:00]}  Qxf6 {[%clk 0:00:00]} 28. Rxf6 {[%clk 0:00:59]} 1-0


[Site "https://www.chess.com"]

[Event "Titled Tuesday Blitz July 4 Early 2023"]
[White "Topalov, Aleksandar"]
[Black "Yelisieiev, Yevhenii"]
[WhiteFideId "925659"]
[BlackFideId "14139642"]
[WhiteElo "2375"]
[BlackElo "2529"]
[Result "1/2-1/2"]
[Round "5"]
[TimeControl "180+2"]
[Date "2023.07.04"]
[WhiteClock "0:00:03"]
[BlackClock "0:00:09"]
[Board "151"]

1. b3 {[%clk 0:03:00]}  d6 {[%clk 0:03:00]} 2. Bb2 {[%clk 0:03:01]}  Nf6 {[%clk 0:03:01]} 3. Bxf6 {[%clk 0:03:00]}  exf6 {[%clk 0:03:01]} 4. c4 {[%clk 0:03:00]}  g6 {[%clk 0:03:02]} 5. Nc3 {[%clk 0:03:00]}  Bg7 {[%clk 0:03:02]} 6. e3 {[%clk 0:03:01]}  f5 {[%clk 0:03:02]} 7. Nge2 {[%clk 0:03:01]}  O-O {[%clk 0:03:02]} 8. g3 {[%clk 0:03:01]}  c6 {[%clk 0:02:54]} 9. Bg2 {[%clk 0:03:01]}  Re8 {[%clk 0:02:52]} 10. O-O {[%clk 0:03:01]}  Nd7 {[%clk 0:02:49]} 11. Rb1 {[%clk 0:03:01]}  a5 {[%clk 0:02:48]} 12. a3 {[%clk 0:03:01]}  Nf6 {[%clk 0:02:45]} 13. Qc2 {[%clk 0:02:53]}  Qe7 {[%clk 0:02:43]} 14. b4 {[%clk 0:02:52]}  axb4 {[%clk 0:02:42]} 15. axb4 {[%clk 0:02:52]}  Ne4 {[%clk 0:02:42]} 16. b5 {[%clk 0:02:45]}  Bd7 {[%clk 0:02:26]} 17. bxc6 {[%clk 0:02:44]}  bxc6 {[%clk 0:02:24]} 18. Rb7 {[%clk 0:02:39]}  Nc5 {[%clk 0:02:21]} 19. Rb6 {[%clk 0:02:25]}  Reb8 {[%clk 0:02:04]} 20. Rxb8+ {[%clk 0:01:32]}  Rxb8 {[%clk 0:02:05]} 21. Rb1 {[%clk 0:01:31]}  Qd8 {[%clk 0:01:59]} 22. d4 {[%clk 0:01:29]}  Ne6 {[%clk 0:01:58]} 23. d5 {[%clk 0:01:23]}  cxd5 {[%clk 0:01:57]} 24. Nxd5 {[%clk 0:01:23]}  h5 {[%clk 0:01:52]} 25. Nef4 {[%clk 0:01:13]}  Nc5 {[%clk 0:01:48]} 26. Ne7+ {[%clk 0:00:58]}  Kh7 {[%clk 0:01:44]} 27. Nc6 {[%clk 0:00:55]}  Rxb1+ {[%clk 0:01:37]} 28. Qxb1 {[%clk 0:00:54]}  Qc8 {[%clk 0:01:18]} 29. Nd4 {[%clk 0:00:50]}  Ne4 {[%clk 0:01:14]} 30. Bxe4 {[%clk 0:00:29]}  fxe4 {[%clk 0:01:14]} 31. Qxe4 {[%clk 0:00:29]}  Qxc4 {[%clk 0:01:13]} 32. Nxh5 {[%clk 0:00:20]}  Bb5 {[%clk 0:00:56]} 33. Qb1 {[%clk 0:00:16]}  Bxd4 {[%clk 0:00:50]} 34. exd4 {[%clk 0:00:15]}  Bc6 {[%clk 0:00:48]} 35. Nf6+ {[%clk 0:00:14]}  Kg7 {[%clk 0:00:47]} 36. d5 {[%clk 0:00:12]}  Bxd5 {[%clk 0:00:31]} 37. Nxd5 {[%clk 0:00:11]}  Qxd5 {[%clk 0:00:31]} 38. Qb2+ {[%clk 0:00:11]}  Kh7 {[%clk 0:00:31]} 39. h4 {[%clk 0:00:08]}  Qf5 {[%clk 0:00:27]} 40. Kf1 {[%clk 0:00:06]}  Qd3+ {[%clk 0:00:23]} 41. Ke1 {[%clk 0:00:06]}  Qe4+ {[%clk 0:00:23]} 42. Qe2 {[%clk 0:00:05]}  Qb1+ {[%clk 0:00:19]} 43. Qd1 {[%clk 0:00:05]}  Qe4+ {[%clk 0:00:16]} 44. Qe2 {[%clk 0:00:05]}  Qh1+ {[%clk 0:00:17]} 45. Kd2 {[%clk 0:00:04]}  d5 {[%clk 0:00:17]} 46. Qd3 {[%clk 0:00:02]}  Qg2 {[%clk 0:00:16]} 47. Qe3 {[%clk 0:00:03]}  Qf1 {[%clk 0:00:13]} 48. Qf4 {[%clk 0:00:02]}  Kg8 {[%clk 0:00:10]} 49. Qb8+ {[%clk 0:00:02]}  Kg7 {[%clk 0:00:08]} 50. Qe5+ {[%clk 0:00:02]}  Kg8 {[%clk 0:00:08]} 51. Qb8+ {[%clk 0:00:02]}  Kh7 {[%clk 0:00:08]} 52. Qf4 {[%clk 0:00:02]}  f5 {[%clk 0:00:07]} 53. Qc7+ {[%clk 0:00:02]}  Kh6 {[%clk 0:00:08]} 54. Qf4+ {[%clk 0:00:02]}  Kh7 {[%clk 0:00:08]} 55. Qc7+ {[%clk 0:00:02]}  Kh6 {[%clk 0:00:08]} 56. Qf4+ {[%clk 0:00:02]}  Kg7 {[%clk 0:00:09]} 57. Qc7+ {[%clk 0:00:02]}  Kg8 {[%clk 0:00:08]} 58. Qd8+ {[%clk 0:00:02]}  Kh7 {[%clk 0:00:08]} 59. Qe7+ {[%clk 0:00:03]}  Kh8 {[%clk 0:00:07]} 60. Qf8+ {[%clk 0:00:03]}  Kh7 {[%clk 0:00:08]} 61. Qf7+ {[%clk 0:00:03]}  Kh8 {[%clk 0:00:08]} 62. Qf8+ {[%clk 0:00:03]}  Kh7 {[%clk 0:00:08]} 63. Qf7+ {[%clk 0:00:04]}  Kh6 {[%clk 0:00:09]} 64. Qf8+ {[%clk 0:00:03]}  Kh7 {[%clk 0:00:09]} 1/2-1/2


[Site "https://www.chess.com"]

[Event "Titled Tuesday Blitz July 4 Early 2023"]
[White "Petrova, Irina"]
[Black "Vyatkin, Dmitry"]
[WhiteFideId "14124122"]
[BlackFideId "4171900"]
[WhiteElo "2363"]
[BlackElo "2525"]
[Result "0-1"]
[Round "5"]
[TimeControl "180+2"]
[Date "2023.07.04"]
[WhiteClock "0:00:13"]
[BlackClock "0:00:05"]
[Board "152"]

1. e4 {[%clk 0:03:00]}  e6 {[%clk 0:02:59]} 2. d4 {[%clk 0:03:01]}  d5 {[%clk 0:02:59]} 3. Nc3 {[%clk 0:03:01]}  Nf6 {[%clk 0:02:59]} 4. Bg5 {[%clk 0:03:01]}  Be7 {[%clk 0:02:58]} 5. e5 {[%clk 0:03:01]}  Nfd7 {[%clk 0:02:58]} 6. Bxe7 {[%clk 0:03:02]}  Qxe7 {[%clk 0:02:58]} 7. f4 {[%clk 0:03:02]}  a6 {[%clk 0:02:55]} 8. Nf3 {[%clk 0:03:03]}  c5 {[%clk 0:02:55]} 9. Qd2 {[%clk 0:03:03]}  Nc6 {[%clk 0:02:55]} 10. dxc5 {[%clk 0:03:04]}  Qxc5 {[%clk 0:02:44]} 11. Qf2 {[%clk 0:03:03]}  b5 {[%clk 0:02:32]} 12. Bd3 {[%clk 0:03:00]}  Bb7 {[%clk 0:02:21]} 13. Qxc5 {[%clk 0:02:55]}  Nxc5 {[%clk 0:02:21]} 14. Ne2 {[%clk 0:02:56]}  Ke7 {[%clk 0:02:01]} 15. Ned4 {[%clk 0:02:55]}  Rac8 {[%clk 0:02:00]} 16. Nxc6+ {[%clk 0:02:45]}  Bxc6 {[%clk 0:01:57]} 17. Nd4 {[%clk 0:02:46]}  f6 {[%clk 0:01:55]} 18. O-O {[%clk 0:02:42]}  Na4 {[%clk 0:01:27]} 19. Rae1 {[%clk 0:02:34]}  Bd7 {[%clk 0:01:24]} 20. b3 {[%clk 0:02:20]}  Nc5 {[%clk 0:01:14]} 21. f5 {[%clk 0:02:08]}  fxe5 {[%clk 0:01:09]} 22. Rxe5 {[%clk 0:02:09]}  Kd6 {[%clk 0:01:08]} 23. Rfe1 {[%clk 0:02:02]}  Nxd3 {[%clk 0:01:01]} 24. cxd3 {[%clk 0:02:03]}  exf5 {[%clk 0:01:00]} 25. Nxf5+ {[%clk 0:01:50]}  Bxf5 {[%clk 0:00:58]} 26. Rxf5 {[%clk 0:01:51]}  Rhf8 {[%clk 0:00:51]} 27. Rxf8 {[%clk 0:01:44]}  Rxf8 {[%clk 0:00:50]} 28. d4 {[%clk 0:01:24]}  b4 {[%clk 0:00:50]} 29. g3 {[%clk 0:01:15]}  Rc8 {[%clk 0:00:41]} 30. Re2 {[%clk 0:01:13]}  Rc3 {[%clk 0:00:38]} 31. Kf2 {[%clk 0:01:13]}  Rd3 {[%clk 0:00:37]} 32. Re8 {[%clk 0:01:06]}  Rxd4 {[%clk 0:00:37]} 33. Ke3 {[%clk 0:01:04]}  Rd1 {[%clk 0:00:37]} 34. Ra8 {[%clk 0:01:04]}  g5 {[%clk 0:00:10]} 35. Rxa6+ {[%clk 0:01:04]}  Ke5 {[%clk 0:00:10]} 36. Rb6 {[%clk 0:00:58]}  d4+ {[%clk 0:00:08]} 37. Ke2 {[%clk 0:00:58]}  Ra1 {[%clk 0:00:08]} 38. Rxb4 {[%clk 0:00:56]}  Rxa2+ {[%clk 0:00:08]} 39. Kd3 {[%clk 0:00:54]}  Rxh2 {[%clk 0:00:09]} 40. Rb5+ {[%clk 0:00:54]}  Kf6 {[%clk 0:00:08]} 41. Kxd4 {[%clk 0:00:52]}  Rg2 {[%clk 0:00:08]} 42. Rb7 {[%clk 0:00:46]}  h5 {[%clk 0:00:08]} 43. b4 {[%clk 0:00:44]}  Rxg3 {[%clk 0:00:07]} 44. b5 {[%clk 0:00:44]}  Rb3 {[%clk 0:00:07]} 45. b6 {[%clk 0:00:38]}  Kf5 {[%clk 0:00:07]} 46. Rb8 {[%clk 0:00:38]}  h4 {[%clk 0:00:07]} 47. b7 {[%clk 0:00:38]}  Kg4 {[%clk 0:00:07]} 48. Ke5 {[%clk 0:00:28]}  h3 {[%clk 0:00:07]} 49. Kf6 {[%clk 0:00:28]}  Rb6+ {[%clk 0:00:06]} 50. Ke5 {[%clk 0:00:26]}  h2 {[%clk 0:00:06]} 51. Rh8 {[%clk 0:00:25]}  Kg3 {[%clk 0:00:06]} 52. Kf5 {[%clk 0:00:22]}  g4 {[%clk 0:00:06]} 53. b8=Q+ {[%clk 0:00:15]}  Rxb8 {[%clk 0:00:06]} 54. Rxb8 {[%clk 0:00:16]}  h1=Q {[%clk 0:00:05]} 55. Rb3+ {[%clk 0:00:17]}  Kh4 {[%clk 0:00:05]} 56. Rb4 {[%clk 0:00:14]}  Qf3+ {[%clk 0:00:05]} 57. Rf4 {[%clk 0:00:14]}  Qxf4+ {[%clk 0:00:04]} 58. Kxf4 {[%clk 0:00:13]}  g3 {[%clk 0:00:05]} 0-1


[Site "https://www.chess.com"]

[Event "Titled Tuesday Blitz July 4 Early 2023"]
[White "Devaev, Alexander"]
[Black "Vasques, Antonio Pedro Freixial"]
[WhiteFideId "4169395"]
[BlackFideId "1908332"]
[WhiteElo "2487"]
[BlackElo "2311"]
[Result "0-1"]
[Round "5"]
[TimeControl "180+2"]
[Date "2023.07.04"]
[WhiteClock "0:00:00"]
[BlackClock "0:00:08"]
[Board "156"]

1. Nf3 {[%clk 0:03:00]}  Nf6 {[%clk 0:02:56]} 2. c4 {[%clk 0:03:00]}  e6 {[%clk 0:02:54]} 3. Nc3 {[%clk 0:03:00]}  d5 {[%clk 0:02:54]} 4. d4 {[%clk 0:03:00]}  Bb4 {[%clk 0:02:54]} 5. Qb3 {[%clk 0:02:55]}  c5 {[%clk 0:02:40]} 6. a3 {[%clk 0:02:54]}  Bxc3+ {[%clk 0:02:37]} 7. bxc3 {[%clk 0:02:51]}  O-O {[%clk 0:02:32]} 8. e3 {[%clk 0:02:50]}  Nc6 {[%clk 0:02:23]} 9. cxd5 {[%clk 0:02:43]}  exd5 {[%clk 0:02:11]} 10. dxc5 {[%clk 0:02:19]}  Ne4 {[%clk 0:02:06]} 11. Nd4 {[%clk 0:02:16]}  Nxc5 {[%clk 0:02:00]} 12. Qc2 {[%clk 0:02:17]}  Re8 {[%clk 0:01:47]} 13. Be2 {[%clk 0:02:11]}  Qg5 {[%clk 0:01:32]} 14. g3 {[%clk 0:02:05]}  Bh3 {[%clk 0:01:30]} 15. f3 {[%clk 0:01:37]}  h5 {[%clk 0:00:31]} 16. Kf2 {[%clk 0:01:21]}  Qf6 {[%clk 0:00:28]} 17. Re1 {[%clk 0:01:06]}  h4 {[%clk 0:00:28]} 18. Rg1 {[%clk 0:00:46]}  Ne5 {[%clk 0:00:23]} 19. Ke1 {[%clk 0:00:38]}  Ne6 {[%clk 0:00:18]} 20. Qd1 {[%clk 0:00:26]}  Rac8 {[%clk 0:00:17]} 21. g4 {[%clk 0:00:20]}  Rxc3 {[%clk 0:00:15]} 22. Bd2 {[%clk 0:00:15]}  Rcc8 {[%clk 0:00:12]} 23. Nxe6 {[%clk 0:00:13]}  Qxe6 {[%clk 0:00:12]} 24. Kf2 {[%clk 0:00:11]}  Nc4 {[%clk 0:00:12]} 25. Bxc4 {[%clk 0:00:11]}  dxc4 {[%clk 0:00:12]} 26. Qe1 {[%clk 0:00:03]}  Rcd8 {[%clk 0:00:10]} 27. Bc3 {[%clk 0:00:02]}  Rd3 {[%clk 0:00:10]} 28. Bd4 {[%clk 0:00:02]}  Qd6 {[%clk 0:00:10]} 29. Rh1 {[%clk 0:00:02]}  Rxd4 {[%clk 0:00:10]} 30. Qc3 {[%clk 0:00:01]}  Rd2+ {[%clk 0:00:09]} 31. Ke1 {[%clk 0:00:00]}  Rd3 {[%clk 0:00:08]} 0-1


[Site "https://www.chess.com"]

[Event "Titled Tuesday Blitz July 4 Early 2023"]
[White "Kovacevic, Radmila"]
[Black "Shapiro, Viktor"]
[WhiteFideId "933171"]
[BlackFideId "4175700"]
[WhiteElo "2214"]
[BlackElo "2482"]
[Result "1-0"]
[Round "5"]
[TimeControl "180+2"]
[Date "2023.07.04"]
[WhiteClock "0:01:07"]
[BlackClock "0:01:18"]
[Board "157"]

1. e4 {[%clk 0:03:00]}  Nf6 {[%clk 0:02:59]} 2. e5 {[%clk 0:03:00]}  Nd5 {[%clk 0:02:59]} 3. Nf3 {[%clk 0:03:01]}  d6 {[%clk 0:03:00]} 4. d4 {[%clk 0:03:00]}  Bg4 {[%clk 0:02:59]} 5. h3 {[%clk 0:02:59]}  Bh5 {[%clk 0:02:59]} 6. Bc4 {[%clk 0:02:59]}  dxe5 {[%clk 0:02:57]} 7. dxe5 {[%clk 0:02:56]}  e6 {[%clk 0:02:58]} 8. O-O {[%clk 0:02:53]}  Be7 {[%clk 0:02:57]} 9. g4 {[%clk 0:02:47]}  Bg6 {[%clk 0:02:56]} 10. Qe2 {[%clk 0:02:36]}  c6 {[%clk 0:02:55]} 11. Nbd2 {[%clk 0:02:33]}  Nf4 {[%clk 0:02:51]} 12. Qe3 {[%clk 0:02:27]}  Nxh3+ {[%clk 0:02:50]} 13. Kg2 {[%clk 0:02:25]}  Ng5 {[%clk 0:02:49]} 14. Nxg5 {[%clk 0:02:22]}  Bxg5 {[%clk 0:02:50]} 15. f4 {[%clk 0:02:23]}  Be7 {[%clk 0:02:49]} 16. f5 {[%clk 0:02:20]}  exf5 {[%clk 0:02:36]} 17. gxf5 {[%clk 0:02:21]}  Bh5 {[%clk 0:02:37]} 18. f6 {[%clk 0:02:11]}  Bf8 {[%clk 0:02:36]} 19. Ne4 {[%clk 0:02:02]}  Nd7 {[%clk 0:02:21]} 20. Nd6+ {[%clk 0:01:52]}  Bxd6 {[%clk 0:02:21]} 21. fxg7 {[%clk 0:01:41]}  Bf8 {[%clk 0:01:21]} 22. gxh8=Q {[%clk 0:01:37]}  Qh4 {[%clk 0:01:20]} 23. e6 {[%clk 0:01:12]}  Qxc4 {[%clk 0:01:19]} 24. exd7+ {[%clk 0:01:09]}  Kxd7 {[%clk 0:01:19]} 25. Qhd4+ {[%clk 0:01:09]}  Qxd4 {[%clk 0:01:18]} 26. Qxd4+ {[%clk 0:01:10]}  Bd6 {[%clk 0:01:18]} 27. Bf4 {[%clk 0:01:07]} 1-0


[Site "https://www.chess.com"]

[Event "Titled Tuesday Blitz July 4 Early 2023"]
[White "Flynn, Jacob"]
[Black "Fernandez Hernandez, Gerardo"]
[WhiteFideId "2509393"]
[BlackFideId "2207400"]
[WhiteElo "2464"]
[BlackElo "2210"]
[Result "1-0"]
[Round "5"]
[TimeControl "180+2"]
[Date "2023.07.04"]
[WhiteClock "0:00:38"]
[BlackClock "0:00:00"]
[Board "158"]

1. c4 {[%clk 0:03:00]}  e5 {[%clk 0:02:59]} 2. g3 {[%clk 0:03:00]}  Nc6 {[%clk 0:02:59]} 3. Bg2 {[%clk 0:03:00]}  f5 {[%clk 0:02:58]} 4. d3 {[%clk 0:02:58]}  Nf6 {[%clk 0:02:58]} 5. Nf3 {[%clk 0:02:56]}  Bc5 {[%clk 0:02:53]} 6. O-O {[%clk 0:02:52]}  d6 {[%clk 0:02:52]} 7. Nc3 {[%clk 0:02:52]}  O-O {[%clk 0:02:52]} 8. Nd5 {[%clk 0:02:51]}  Nxd5 {[%clk 0:02:47]} 9. cxd5 {[%clk 0:02:51]}  Nd4 {[%clk 0:02:38]} 10. Nxd4 {[%clk 0:02:42]}  Bxd4 {[%clk 0:02:39]} 11. e3 {[%clk 0:02:42]}  Bb6 {[%clk 0:02:38]} 12. b4 {[%clk 0:02:41]}  a5 {[%clk 0:02:20]} 13. bxa5 {[%clk 0:02:32]}  Rxa5 {[%clk 0:02:12]} 14. a4 {[%clk 0:02:29]}  Bd7 {[%clk 0:01:58]} 15. Bd2 {[%clk 0:02:28]}  Ra7 {[%clk 0:01:48]} 16. a5 {[%clk 0:02:25]}  Bc5 {[%clk 0:01:47]} 17. Rb1 {[%clk 0:02:02]}  b6 {[%clk 0:01:10]} 18. axb6 {[%clk 0:01:48]}  Bxb6 {[%clk 0:01:11]} 19. Ra1 {[%clk 0:01:34]}  Qa8 {[%clk 0:01:06]} 20. Rxa7 {[%clk 0:01:32]}  Qxa7 {[%clk 0:01:06]} 21. Qb3 {[%clk 0:01:25]}  g5 {[%clk 0:00:37]} 22. Bc3 {[%clk 0:01:06]}  f4 {[%clk 0:00:27]} 23. Ra1 {[%clk 0:01:05]}  Qb8 {[%clk 0:00:21]} 24. d4 {[%clk 0:00:55]}  fxe3 {[%clk 0:00:17]} 25. fxe3 {[%clk 0:00:54]}  Bxd4 {[%clk 0:00:17]} 26. Qxb8 {[%clk 0:00:50]}  Bxe3+ {[%clk 0:00:17]} 27. Kh1 {[%clk 0:00:50]}  Rxb8 {[%clk 0:00:16]} 28. Be4 {[%clk 0:00:45]}  h5 {[%clk 0:00:07]} 29. Kg2 {[%clk 0:00:44]}  h4 {[%clk 0:00:07]} 30. gxh4 {[%clk 0:00:43]}  gxh4 {[%clk 0:00:07]} 31. Kf3 {[%clk 0:00:43]}  Bf4 {[%clk 0:00:00]} 32. Ra7 {[%clk 0:00:38]} 1-0


[Site "https://www.chess.com"]

[Event "Titled Tuesday Blitz July 4 Early 2023"]
[White "campochess"]
[Black "Fiedorek, Michal"]
[BlackFideId "1199528"]
[WhiteElo "2146"]
[BlackElo "2459"]
[Result "0-1"]
[Round "5"]
[TimeControl "180+2"]
[Date "2023.07.04"]
[WhiteClock "0:00:10"]
[BlackClock "0:01:06"]
[Board "159"]

1. d4 {[%clk 0:02:59]}  Nf6 {[%clk 0:02:46]} 2. Bg5 {[%clk 0:02:59]}  e6 {[%clk 0:02:45]} 3. e4 {[%clk 0:02:58]}  h6 {[%clk 0:02:42]} 4. Bxf6 {[%clk 0:02:57]}  Qxf6 {[%clk 0:02:42]} 5. Nf3 {[%clk 0:02:57]}  d6 {[%clk 0:02:42]} 6. c4 {[%clk 0:02:56]}  g5 {[%clk 0:02:42]} 7. h3 {[%clk 0:02:55]}  Bg7 {[%clk 0:02:41]} 8. Nc3 {[%clk 0:02:55]}  h5 {[%clk 0:02:37]} 9. e5 {[%clk 0:02:45]}  dxe5 {[%clk 0:02:33]} 10. Nxe5 {[%clk 0:02:42]}  Nc6 {[%clk 0:02:19]} 11. Nxc6 {[%clk 0:02:41]}  bxc6 {[%clk 0:02:19]} 12. Qa4 {[%clk 0:02:35]}  O-O {[%clk 0:02:09]} 13. Rd1 {[%clk 0:02:33]}  e5 {[%clk 0:02:06]} 14. d5 {[%clk 0:02:30]}  e4 {[%clk 0:02:03]} 15. Be2 {[%clk 0:02:16]}  Rb8 {[%clk 0:02:02]} 16. Nxe4 {[%clk 0:01:59]}  Qxb2 {[%clk 0:01:56]} 17. Rd2 {[%clk 0:01:42]}  Bc3 {[%clk 0:01:46]} 18. Nxc3 {[%clk 0:01:41]}  Qxc3 {[%clk 0:01:47]} 19. Qc2 {[%clk 0:01:37]}  Qxc2 {[%clk 0:01:43]} 20. Rxc2 {[%clk 0:01:36]}  Rb1+ {[%clk 0:01:44]} 21. Bd1 {[%clk 0:01:35]}  Bf5 {[%clk 0:01:38]} 22. Kd2 {[%clk 0:01:29]}  cxd5 {[%clk 0:01:29]} 23. cxd5 {[%clk 0:01:13]}  Bxc2 {[%clk 0:01:29]} 24. Kxc2 {[%clk 0:01:13]}  Rfb8 {[%clk 0:01:29]} 25. Re1 {[%clk 0:01:09]}  Kg7 {[%clk 0:01:25]} 26. Re3 {[%clk 0:00:54]}  R8b2+ {[%clk 0:01:24]} 27. Kc3 {[%clk 0:00:52]}  Rxf2 {[%clk 0:01:24]} 28. Bxh5 {[%clk 0:00:47]}  Rc1+ {[%clk 0:01:21]} 29. Kd4 {[%clk 0:00:46]}  Rxg2 {[%clk 0:01:13]} 30. Re7 {[%clk 0:00:31]}  Rd2+ {[%clk 0:01:08]} 31. Ke3 {[%clk 0:00:24]}  Re1+ {[%clk 0:01:08]} 32. Kxd2 {[%clk 0:00:24]}  Rxe7 {[%clk 0:01:09]} 33. Kd3 {[%clk 0:00:24]}  f5 {[%clk 0:01:09]} 34. Kd4 {[%clk 0:00:23]}  Kf6 {[%clk 0:01:09]} 35. Bd1 {[%clk 0:00:21]}  Re1 {[%clk 0:01:06]} 36. Bc2 {[%clk 0:00:20]}  f4 {[%clk 0:01:07]} 37. Bd3 {[%clk 0:00:10]}  f3 {[%clk 0:01:06]} 0-1


[Site "https://www.chess.com"]